fUSD/lending_fUSD_20251001
["ID","MTS","AMOUNT","RATE_DAILY","PERIOD"]
[388786620,1759361441534,-685.34087882,0.00018,2]
[388786622,1759361441544,-151.0,0.00018,2]
[388786624,1759361441554,-187.16,0.00018004,2]
[388786627,1759361441563,-267.46074303,0.00018043,2]
[388786629,1759361441573,-173.81231863,0.00018054,2]
[388786631,1759361441582,-151.0,0.00018086,2]
[388786633,1759361441592,-1177.756,0.00018143,2]
[388786635,1759361441603,-420.0,0.00018217,2]
[388786637,1759361441612,-250.0,0.00018227,2]
[388786639,1759361441623,-1680.0,0.00018307,2]
[388786641,1759361441632,-300.0,0.00018339,2]
[388786643,1759361441642,-500.0,0.00018339,2]
[388786646,1759361441652,-300.0,0.00018339,2]
[388786648,1759361441661,-195.0,0.00018339,2]
[388786650,1759361441671,-300.0,0.00018339,2]
[388786652,1759361441680,-250.0,0.00018339,2]
[388786654,1759361441690,-2000.0,0.00018339,2]
[388786656,1759361441703,-2500.0,0.00018339,2]
[388786658,1759361441713,-150.0,0.00018339,2]
[388786661,1759361441726,-200.0,0.00018352,2]
[388786663,1759361441736,-10076.79,0.00018356,2]
[388786665,1759361441745,-334.5472959,0.00018359,2]
[388786667,1759361441755,-198.75651746,0.00018399,2]
[388786669,1759361441764,-153.0,0.000184,2]
[388786671,1759361441773,-9042.58575682,0.00018458,2]
[388786673,1759361441783,-500.0,0.0001847,2]
[388786675,1759361441793,-1000.0,0.0001847,2]
[388786677,1759361441803,-151.0,0.00018497,2]
[388786679,1759361441812,-290.40281212,0.00018497,2]
[388786681,1759361441822,-194.08,0.00018499,2]
[388786683,1759361441831,-1600.41,0.00018499,2]
[388786685,1759361441841,-1306.0,0.00018499,2]
[388786687,1759361441851,-603.0,0.00018499,2]
[388786689,1759361441860,-570.0,0.00018499,2]
[388786690,1759361441870,-1584.0,0.00018499,2]
[388786691,1759361441880,-813.0,0.00018499,2]
[388786692,1759361441890,-641.409,0.00018499,2]
[388786693,1759361441899,-4235.0,0.00018499,2]
[388786694,1759361441909,-3399.0,0.00018499,2]
[388786695,1759361441918,-6234.0,0.00018499,2]
[388786696,1759361441927,-2095.917,0.00018499,2]
[388786697,1759361441937,-883.0,0.00018499,2]
[388786698,1759361441946,-4114.0,0.00018499,2]
[388786699,1759361441955,-634800.43229564,0.000185,2]
[388786700,1759361441993,-5433.83307558,0.000185,2]
[388786701,1759361442004,-4744.2369456,0.000185,2]
[388786702,1759361442015,-193084.25781602,0.000185,2]
[388786703,1759361442025,-169.71604083,0.00018539,2]
[388786704,1759361442034,-173.81231863,0.0001863,2]
[388786705,1759361442044,-3070.0,0.00018666,2]
[388786706,1759361442054,-194.08,0.00018773,2]
[388786707,1759361442064,-1600.41,0.00018773,2]
[388786708,1759361442073,-370.35923647,0.000189,2]
[388786709,1759361442082,-194.08417184,0.00019047,2]
[388786710,1759361442092,-1600.41,0.00019047,2]
[388786711,1759361442101,-1000.0,0.00019099,2]
[388786712,1759361442110,-739.18233929,0.00019154,2]
[388786713,1759361442119,-151.0,0.00019178,2]
[388786714,1759361442129,-4000.0,0.00019178,2]
[388786715,1759361442138,-739.18233929,0.00019191,2]
[388786716,1759361442147,-173.81231863,0.00019207,2]
[388786717,1759361442157,-3007.40154057,0.00019266,2]
[388786718,1759361442166,-1600.41,0.00019321,2]
[388786719,1759361442176,-5944.77322143,0.00019399,2]
[388786720,1759361442186,-277.35679052,0.00019412,2]
[388786721,1759361442196,-150.0,0.0001959,2]
[388786722,1759361442206,-1600.41,0.00019595,2]
[388786723,1759361442216,-806.9651736,0.00019598,2]
[388786724,1759361442227,-3445.0481505,0.00019598,2]
[388786725,1759361442237,-257.25143951,0.00019701,2]
[388786726,1759361442246,-150.0,0.00019701,2]
[388786727,1759361442256,-332.71,0.00019703,2]
[388786728,1759361442768,-739.18233929,0.0001972,2]
[388786729,1759361442779,-179.7695246,0.00019726,2]
[388786730,1759361442788,-346.92554585,0.00019728,2]
[388786731,1759361442798,-442.90126949,0.00019729,2]
[388786732,1759361442807,-150.0,0.0001973,2]
[388786733,1759361442816,-150.0,0.0001973,2]
[388786734,1759361442826,-150.0,0.0001973,2]
[388786735,1759361442835,-152.35426519,0.0001973,2]
[388786736,1759361442845,-150.0,0.0001973,2]
[388786737,1759361442854,-500.0,0.0001973,2]
[388786738,1759361442863,-150.0,0.0001973,2]
[388786740,1759361442872,-1090.0,0.0001973,2]
[388786742,1759361442882,-150.0,0.0001973,2]
[388786744,1759361442891,-500.0,0.0001973,2]
[388786746,1759361442905,-500.0,0.0001973,2]
[388786748,1759361442917,-150.0,0.0001973,2]
[388786751,1759361442926,-150.0,0.0001973,2]
[388786753,1759361442936,-500.0,0.0001973,2]
[388786755,1759361442947,-150.0,0.0001973,2]
[388786757,1759361442956,-500.0,0.0001973,2]
[388786759,1759361442965,-500.0,0.0001973,2]
[388786761,1759361442975,-150.0,0.0001973,2]
[388786763,1759361442986,-150.0,0.0001973,2]
[388786765,1759361442996,-500.0,0.0001973,2]
[388786767,1759361443005,-150.0,0.0001973,2]
[388786769,1759361443015,-150.0,0.0001973,2]
[388786771,1759361443024,-150.0,0.0001973,2]
[388786773,1759361443034,-500.0,0.0001973,2]
[388786775,1759361443043,-500.0,0.0001973,2]
[388786777,1759361443052,-500.0,0.0001973,2]
[388786779,1759361443061,-150.0,0.0001973,2]
[388786781,1759361443071,-250.0,0.0001973,2]
[388786783,1759361443080,-500.0,0.0001973,2]
[388786785,1759361443089,-150.0,0.0001973,2]
[388786787,1759361443099,-500.0,0.0001973,2]
[388786789,1759361443108,-500.0,0.0001973,2]
[388786791,1759361443117,-150.0,0.0001973,2]
[388786793,1759361443126,-248.15679265,0.0001973,2]
[388786795,1759361443135,-500.0,0.0001973,2]
[388786797,1759361443145,-150.0,0.0001973,2]
[388786798,1759361443154,-164.3,0.00019742,2]
[388786800,1759361443164,-173.81231863,0.00019784,2]
[388786802,1759361443173,-3245.8371627,0.00019798,2]
[388786804,1759361443182,-739.18233931,0.00019817,2]
[388786806,1759361443192,-1600.41,0.00019869,2]
[388786807,1759361443202,-1000.0,0.00019899,2]
[388786809,1759361443211,-587.0,0.00019903,2]
[388786811,1759361443221,-670.31474812,0.0001994,2]
[388786812,1759361443230,-500.0,0.0001997,2]
[388786813,1759361443239,-1000.0,0.0001997,2]
[388786814,1759361443249,-2552.81015887,0.0001997,2]
[388786815,1759361443258,-616.25221101,0.00019999,2]
[388786816,1759361443268,-6939.11251308,0.0002,2]
[388786817,1759361443278,-1512.05406265,0.0002,2]
[388786818,1759361443288,-25242.35128718,0.0002,2]
[388786819,1759361443297,-3331.42318853,0.0002,5]
[388786820,1759361443307,-209835.84888775,0.0002,2]
[388786821,1759361443316,-31023.63155338,0.0002,2]
[388786822,1759361443326,-20000.0,0.0002,30]
[388786823,1759361443336,-1677.342843,0.0002,2]
[388786824,1759361443346,-370.35923647,0.0002,30]
[388786825,1759361443356,-151.0,0.0002,2]
[388786826,1759361443366,-154.71,0.0002,2]
[388786827,1759361443376,-108295.36226759,0.0002,2]
[388786828,1759361443385,-1442.61340541,0.0002,5]
[388786829,1759361443394,-6938.95120912,0.0002,5]
[388786830,1759361443404,-170.8425,0.0002,2]
[388786831,1759361443413,-230.25431,0.0002,2]
[388786832,1759361443422,-4000.0,0.0002,4]
[388786833,1759361443432,-150.0,0.00020004,2]
[388786834,1759361443442,-150.0,0.00020004,2]
[388786835,1759361443452,-500.0,0.00020004,2]
[388786836,1759361443461,-150.0,0.00020004,2]
[388786837,1759361443470,-1090.0,0.00020004,2]
[388786838,1759361443479,-150.0,0.00020004,2]
[388786839,1759361443489,-500.0,0.00020004,2]
[388786840,1759361443498,-500.0,0.00020004,2]
[388786841,1759361443508,-200.0,0.00020004,2]
[388786842,1759361443518,-500.0,0.00020004,2]
[388786843,1759361443529,-150.0,0.00020004,2]
[388786844,1759361443539,-500.0,0.00020004,2]
[388786845,1759361443548,-150.0,0.00020004,2]
[388786846,1759361443558,-500.0,0.00020004,2]
[388786847,1759361443567,-200.0,0.00020004,2]
[388786848,1759361443576,-500.0,0.00020004,2]
[388786849,1759361443586,-500.0,0.00020004,2]
[388786850,1759361443595,-500.0,0.00020004,2]
[388786851,1759361443605,-150.0,0.00020004,2]
[388786852,1759361443615,-500.0,0.00020004,2]
[388786853,1759361443624,-150.0,0.00020004,2]
[388786854,1759361443634,-500.0,0.00020004,2]
[388786855,1759361443643,-500.0,0.00020004,2]
[388786856,1759361443653,-229.3077762,0.00020004,2]
[388786857,1759361443662,-500.0,0.00020004,2]
[388786858,1759361443671,-150.0,0.00020004,2]
[388786859,1759361443680,-168.0,0.00020006,2]
[388786860,1759361443689,-168.0,0.00020016,2]
[388786861,1759361443699,-188.5,0.00020019,2]
[388786862,1759361443709,-183.56,0.00020024,2]
[388786864,1759361443719,-774.1668846,0.00020068,2]
[388786866,1759361443728,-2351.0,0.00020102,2]
[388786867,1759361443737,-198.75651745,0.00020108,4]
[388786868,1759361443746,-1084.0,0.00020123,2]
[388786869,1759361443755,-1600.41,0.00020143,2]
[388786870,1759361443764,-151.0,0.00020145,2]
[388786872,1759361443773,-160.570024,0.00020145,2]
[388786874,1759361443783,-2568.293926,0.00020145,2]
[388786876,1759361443793,-151.0,0.00020145,2]
[388786878,1759361443802,-2568.293926,0.00020145,2]
[388786880,1759361443811,-151.0,0.00020145,2]
[388786883,1759361443821,-151.0,0.00020145,2]
[388786885,1759361443830,-2568.293926,0.00020145,2]
[388786887,1759361443839,-151.0,0.00020145,2]
[388786889,1759361443847,-2568.293926,0.00020145,2]
[388786891,1759361443857,-266.253751,0.00020145,2]
[388786893,1759361443866,-151.0,0.00020145,2]
[388786895,1759361443876,-151.0,0.00020145,2]
[388786897,1759361443886,-266.253751,0.00020145,2]
[388786900,1759361443895,-151.0,0.00020145,2]
[388786903,1759361443906,-151.0,0.00020145,2]
[388786906,1759361443916,-151.0,0.00020145,2]
[388786909,1759361443927,-266.253751,0.00020145,2]
[388786912,1759361443937,-151.0,0.00020145,2]
[388786914,1759361443947,-249.206761,0.00020145,2]
[388786916,1759361443957,-151.0,0.00020145,2]
[388786918,1759361443967,-151.0,0.00020145,2]
[388786920,1759361443976,-266.253751,0.00020145,2]
[388786922,1759361443985,-249.206761,0.00020145,2]
[388786924,1759361443994,-151.0,0.00020145,2]
[388786926,1759361444003,-249.206761,0.00020145,2]
[388786928,1759361444012,-151.0,0.00020145,2]
[388786930,1759361444021,-250.492503,0.00020145,2]
[388786932,1759361444032,-249.206761,0.00020145,2]
[388786934,1759361444041,-151.0,0.00020145,2]
[388786936,1759361444050,-151.0,0.00020145,2]
[388786938,1759361444059,-151.0,0.00020145,2]
[388786940,1759361444068,-151.0,0.00020145,2]
[388786942,1759361444077,-157.691392,0.00020145,2]
[388786945,1759361444087,-151.0,0.00020145,2]
[388786947,1759361444097,-151.0,0.00020145,2]
[388786949,1759361444106,-487.766599,0.00020145,2]
[388786950,1759361444115,-151.0,0.00020145,2]
[388786953,1759361444124,-151.0,0.00020145,2]
[388786954,1759361444134,-487.766599,0.00020145,2]
[388786957,1759361444143,-151.0,0.00020145,2]
[388786958,1759361444153,-151.0,0.00020145,2]
[388786960,1759361444163,-487.766599,0.00020145,2]
[388786963,1759361444172,-184.788242,0.00020145,2]
[388786965,1759361444181,-487.766599,0.00020145,2]
[388786967,1759361444191,-151.0,0.00020145,2]
[388786968,1759361444200,-151.0,0.00020145,2]
[388786970,1759361444214,-151.0,0.00020145,2]
[388786972,1759361444224,-173.572318,0.00020145,2]
[388786974,1759361444233,-151.0,0.00020145,2]
[388786976,1759361444242,-151.0,0.00020145,2]
[388786978,1759361444251,-151.0,0.00020145,2]
[388786980,1759361444260,-151.0,0.00020145,2]
[388786982,1759361444269,-151.0,0.00020145,2]
[388786984,1759361444280,-151.0,0.00020145,2]
[388786987,1759361444290,-151.0,0.00020145,2]
[388786988,1759361444301,-283.134325,0.00020145,2]
[388786990,1759361444310,-151.0,0.00020145,2]
[388786993,1759361444320,-151.0,0.00020145,2]
[388786994,1759361444329,-151.0,0.00020145,2]
[388786997,1759361444339,-151.0,0.00020145,2]
[388786999,1759361444348,-151.0,0.00020145,2]
[388787001,1759361444357,-171.082644,0.00020145,2]
[388787003,1759361444367,-151.0,0.00020145,2]
[388787005,1759361444376,-171.082644,0.00020145,2]
[388787007,1759361444385,-151.0,0.00020145,2]
[388787009,1759361444395,-171.082644,0.00020145,2]
[388787011,1759361444404,-1146.168676,0.00020145,2]
[388787013,1759361444413,-171.082644,0.00020145,2]
[388787015,1759361444422,-1146.168676,0.00020145,2]
[388787017,1759361444431,-151.0,0.00020145,2]
[388787019,1759361444440,-186.170087,0.00020145,2]
[388787020,1759361444449,-1146.168676,0.00020145,2]
[388787023,1759361444459,-151.0,0.00020145,2]
[388787024,1759361444468,-186.170087,0.00020145,2]
[388787026,1759361444477,-1146.168676,0.00020145,2]
[388787028,1759361444487,-186.170087,0.00020145,2]
[388787030,1759361444496,-186.170087,0.00020145,2]
[388787031,1759361444506,-151.0,0.00020145,2]
[388787032,1759361444515,-151.0,0.00020145,2]
[388787033,1759361444524,-151.0,0.00020145,2]
[388787034,1759361444534,-480.724032,0.00020145,2]
[388787035,1759361444544,-151.0,0.00020145,2]
[388787036,1759361444554,-495.661312,0.00020145,2]
[388787037,1759361444563,-151.0,0.00020145,2]
[388787038,1759361444572,-480.724032,0.00020145,2]
[388787039,1759361444582,-495.661312,0.00020145,2]
[388787040,1759361444591,-480.724032,0.00020145,2]
[388787041,1759361444600,-151.0,0.00020145,2]
[388787043,1759361444609,-152.087696,0.00020145,2]
[388787044,1759361444618,-495.661312,0.00020145,2]
[388787046,1759361444628,-480.724032,0.00020145,2]
[388787048,1759361444638,-495.661312,0.00020145,2]
[388787050,1759361444647,-151.0,0.00020145,2]
[388787053,1759361444656,-151.0,0.00020145,2]
[388787055,1759361444666,-892.57297,0.00020145,2]
[388787057,1759361444675,-151.0,0.00020145,2]
[388787059,1759361444684,-151.0,0.00020145,2]
[388787060,1759361444694,-151.0,0.00020145,2]
[388787063,1759361444704,-151.0,0.00020145,2]
[388787065,1759361444714,-151.0,0.00020145,2]
[388787067,1759361444723,-892.57297,0.00020145,2]
[388787069,1759361444732,-151.0,0.00020145,2]
[388787071,1759361444741,-151.0,0.00020145,2]
[388787073,1759361444750,-151.0,0.00020145,2]
[388787075,1759361444759,-892.57297,0.00020145,2]
[388787077,1759361444768,-237.163617,0.00020145,2]
[388787079,1759361444778,-151.0,0.00020145,2]
[388787081,1759361444787,-151.0,0.00020145,2]
[388787083,1759361444796,-892.57297,0.00020145,2]
[388787085,1759361444805,-237.163617,0.00020145,2]
[388787087,1759361444815,-151.0,0.00020145,2]
[388787089,1759361444824,-237.163617,0.00020145,2]
[388787091,1759361444833,-178.84605,0.00020145,2]
[388787093,1759361444843,-237.163617,0.00020145,2]
[388787095,1759361444852,-151.0,0.00020145,2]
[388787097,1759361444861,-151.0,0.00020145,2]
[388787099,1759361444870,-151.0,0.00020145,2]
[388787101,1759361444879,-234.482756,0.00020145,2]
[388787103,1759361444889,-151.0,0.00020145,2]
[388787105,1759361444898,-151.0,0.00020145,2]
[388787107,1759361444912,-1570.347567,0.00020145,2]
[388787109,1759361444921,-23307.32,0.00020145,2]
[388787111,1759361444931,-169.71604083,0.00020178,2]
[388787113,1759361444942,-1677.342843,0.000202,2]
[388787115,1759361444951,-243.0,0.000202,2]
[388787117,1759361444960,-385.0,0.000202,2]
[388787119,1759361444970,-230.25432,0.000202,2]
[388787121,1759361444980,-168.0,0.00020237,2]
[388787123,1759361444989,-150.0,0.00020278,2]
[388787125,1759361444999,-500.0,0.00020278,2]
[388787127,1759361445008,-250.0,0.00020278,2]
[388787129,1759361445017,-1090.0,0.00020278,2]
[388787131,1759361445026,-197.80120988,0.00020278,2]
[388787133,1759361445035,-500.0,0.00020278,2]
[388787135,1759361445044,-500.0,0.00020278,2]
[388787137,1759361445054,-500.0,0.00020278,2]
[388787139,1759361445063,-150.0,0.00020278,2]
[388787141,1759361445072,-500.0,0.00020278,2]
[388787143,1759361445082,-150.0,0.00020278,2]
[388787144,1759361445090,-150.0,0.00020278,2]
[388787146,1759361445100,-500.0,0.00020278,2]
[388787149,1759361445109,-500.0,0.00020278,2]
[388787150,1759361445119,-169.27234431,0.00020278,2]
[388787153,1759361445128,-150.0,0.00020278,2]
[388787154,1759361445137,-500.0,0.00020278,2]
[388787157,1759361445147,-150.0,0.00020278,2]
[388787159,1759361445156,-198.0,0.00020278,2]
[388787161,1759361445166,-500.0,0.00020278,2]
[388787163,1759361445175,-500.0,0.00020278,2]
[388787165,1759361445185,-150.0,0.00020278,2]
[388787167,1759361445194,-206.38,0.000203,2]
[388787169,1759361445204,-173.81231863,0.00020361,2]
[388787171,1759361445213,-425.48502648,0.00020396,12]
[388787173,1759361445222,-1677.342843,0.000204,2]
[388787175,1759361445231,-1025.0,0.000204,2]
[388787177,1759361445240,-1600.41,0.00020417,2]
[388787179,1759361445250,-978.57,0.00020425,2]
[388787180,1759361445258,-270.08050459,0.000205,2]
[388787182,1759361445268,-168.0,0.00020527,2]
[388787185,1759361445277,-250.0,0.00020552,2]
[388787186,1759361445287,-157.88693685,0.00020552,2]
[388787189,1759361445297,-1090.0,0.00020552,2]
[388787191,1759361445306,-500.0,0.00020552,2]
[388787193,1759361445315,-500.0,0.00020552,2]
[388787195,1759361445324,-150.0,0.00020552,2]
[388787196,1759361445334,-150.0,0.00020552,2]
[388787198,1759361445343,-200.0,0.00020552,2]
[388787201,1759361445354,-500.0,0.00020552,2]
[388787203,1759361445364,-500.0,0.00020552,2]
[388787204,1759361445373,-150.0,0.00020552,2]
[388787207,1759361445384,-500.0,0.00020552,2]
[388787208,1759361445394,-587.76470192,0.00020552,2]
[388787210,1759361445403,-350.0,0.00020552,2]
[388787212,1759361445412,-150.0,0.00020552,2]
[388787215,1759361445421,-151.0,0.00020578,2]
[388787216,1759361445431,-1677.342843,0.000206,2]
[388787219,1759361445440,-1600.41,0.00020691,2]
[388787220,1759361445450,-230.25431,0.000207,2]
[388787223,1759361445460,-172.7399809,0.00020756,2]
[388787225,1759361445470,-150.0,0.0002077,2]
[388787227,1759361445479,-7000.0,0.0002077,2]
[388787229,1759361445488,-287.61899177,0.00020781,2]
[388787231,1759361445497,-1000.38,0.000208,2]
[388787233,1759361445507,-2000.0,0.000208,2]
[388787235,1759361445516,-2000.0,0.000208,2]
[388787237,1759361445525,-2000.0,0.000208,2]
[388787239,1759361445535,-2000.01,0.000208,2]
[388787240,1759361445544,-1677.342843,0.000208,2]
[388787243,1759361445554,-425.48502648,0.00020821,14]
[388787245,1759361445564,-1090.0,0.00020826,2]
[388787247,1759361445573,-500.0,0.00020826,2]
[388787249,1759361445582,-500.0,0.00020826,2]
[388787251,1759361445592,-150.0,0.00020826,2]
[388787253,1759361445601,-500.0,0.00020826,2]
[388787255,1759361445610,-500.0,0.00020826,2]
[388787257,1759361445620,-150.0,0.00020826,2]
[388787259,1759361445629,-500.0,0.00020826,2]
[388787261,1759361445639,-500.0,0.00020849,2]
[388787263,1759361445648,-150.0,0.00020877,2]
[388787265,1759361445658,-2139.79,0.000209,2]
[388787267,1759361445668,-220.0,0.000209,2]
[388787269,1759361445677,-450.79,0.000209,2]
[388787271,1759361445686,-332.71,0.00020906,2]
[388787273,1759361445695,-1910.7,0.00020907,2]
[388787275,1759361445706,-21680.55,0.00020933,2]
[388787276,1759361445716,-173.81231863,0.00020937,2]
[388787278,1759361445725,-500.0,0.00020945,7]
[388787280,1759361445734,-500.0,0.00020945,7]
[388787283,1759361445744,-500.0,0.00020945,7]
[388787285,1759361445754,-500.0,0.00020945,7]
[388787287,1759361445764,-500.0,0.00020945,7]
[388787289,1759361445774,-500.0,0.00020945,7]
[388787291,1759361445784,-500.0,0.00020945,7]
[388787293,1759361445794,-500.0,0.00020945,7]
[388787295,1759361445803,-500.0,0.00020945,7]
[388787297,1759361445813,-500.0,0.00020945,7]
[388787299,1759361445822,-500.0,0.00020945,7]
[388787301,1759361445832,-500.0,0.00020945,7]
[388787303,1759361445841,-500.0,0.00020945,7]
[388787305,1759361445851,-500.0,0.00020945,7]
[388787307,1759361445860,-500.0,0.00020945,7]
[388787309,1759361445869,-500.0,0.00020945,7]
[388787312,1759361445878,-322.96,0.00020945,7]
[388787314,1759361445888,-500.0,0.00020945,7]
[388787317,1759361445897,-500.0,0.00020945,7]
[388787320,1759361445906,-500.0,0.00020945,7]
[388787323,1759361445916,-370.35923647,0.00020945,7]
[388787326,1759361445925,-1600.41,0.00020965,2]
[388787328,1759361445934,-231.84,0.00020986,2]
[388787330,1759361445943,-1000.0,0.00021,3]
[388787332,1759361445954,-25000.0,0.00021,2]
[388787334,1759361445964,-1102.96,0.00021,2]
[388787336,1759361445974,-5888.0,0.00021005,2]
[388787338,1759361445983,-151.0,0.00021043,2]
[388787340,1759361445992,-359.76179104,0.00021097,2]
[388787342,1759361446002,-1090.0,0.000211,2]
[388787344,1759361446011,-500.0,0.000211,2]
[388787346,1759361446020,-500.0,0.000211,2]
[388787348,1759361446030,-200.0,0.000211,2]
[388787350,1759361446039,-400.0,0.000211,2]
[388787352,1759361446048,-500.0,0.000211,2]
[388787354,1759361446058,-500.0,0.000211,2]
[388787357,1759361446067,-150.0,0.000211,2]
[388787360,1759361446076,-500.0,0.000211,2]
[388787363,1759361446086,-2139.79,0.000211,2]
[388787365,1759361446096,-220.0,0.000211,2]
[388787367,1759361446105,-450.79,0.000211,2]
[388787369,1759361446115,-4000.0,0.00021111,4]
[388787371,1759361446124,-230.25432,0.000212,2]
[388787373,1759361446133,-1600.41,0.00021239,2]
[388787375,1759361446143,-425.48502648,0.00021247,15]
[388787377,1759361446152,-1090.0,0.00021374,2]
[388787379,1759361446161,-500.0,0.00021374,2]
[388787381,1759361446171,-480.0,0.00021374,2]
[388787383,1759361446180,-500.0,0.00021374,2]
[388787385,1759361446189,-500.0,0.00021374,2]
[388787387,1759361446199,-3894.05661456,0.00021498,3]
[388787389,1759361446209,-603.0,0.00021499,2]
[388787391,1759361446218,-4020.692,0.00021499,2]
[388787393,1759361446227,-3399.0,0.00021499,2]
[388787395,1759361446236,-6234.0,0.00021499,2]
[388787397,1759361446245,-2045.0,0.00021499,2]
[388787399,1759361446255,-755.0,0.00021499,2]
[388787401,1759361446264,-2000.0,0.000215,2]
[388787403,1759361446274,-151.0,0.00021507,2]
[388787405,1759361446283,-1600.41,0.00021513,2]
[388787407,1759361446293,-173.81231863,0.00021514,2]
[388787409,1759361446303,-16246.38768438,0.00021527,2]
[388787411,1759361446312,-66231.67213702,0.0002153,2]
[388787413,1759361446322,-66231.67213702,0.0002153,2]
[388787415,1759361446331,-647.08300379,0.00021532,2]
[388787417,1759361446340,-1259.71971776,0.00021533,2]
[388787419,1759361446350,-66231.67213702,0.00021535,2]
[388787421,1759361446359,-80462.97548988,0.00021541,2]
[388787423,1759361446368,-30714.65627628,0.00021542,2]
[388787425,1759361446377,-1259.71971776,0.00021542,2]
[388787427,1759361446387,-1149.25014738,0.00021546,2]
[388787429,1759361446396,-18892.47795218,0.00021547,2]
[388787431,1759361446405,-158.97341172,0.00021549,2]
[388787433,1759361446415,-314198.35233213,0.00021554,2]
[388787435,1759361446424,-18892.47795218,0.00021555,2]
[388787437,1759361446433,-9468.98389749,0.00021556,2]
[388787439,1759361446444,-158.97341172,0.00021556,2]
[388787441,1759361446454,-3888.80354853,0.00021556,2]
[388787444,1759361446464,-407.67023899,0.00021556,2]
[388787446,1759361446473,-251.62023487,0.00021558,2]
[388787447,1759361446482,-251.62023487,0.00021559,2]
[388787449,1759361446491,-18892.47795218,0.00021559,2]
[388787451,1759361446500,-407.67023899,0.00021559,2]
[388787453,1759361446510,-9468.98389749,0.00021561,2]
[388787455,1759361446519,-80462.97548988,0.00021563,2]
[388787457,1759361446528,-158.97341172,0.00021567,2]
[388787460,1759361446538,-66231.67213702,0.00021567,2]
[388787462,1759361446547,-9468.98389749,0.00021568,2]
[388787464,1759361446557,-177.41530959,0.00021571,2]
[388787466,1759361446567,-407.67023899,0.00021571,2]
[388787468,1759361446576,-3541.02693198,0.00021574,2]
[388787470,1759361446585,-19693.48862777,0.00021576,2]
[388787472,1759361446595,-3888.80354853,0.00021576,2]
[388787474,1759361446604,-1259.71971776,0.00021577,2]
[388787476,1759361446615,-30714.65627628,0.00021581,2]
[388787478,1759361446624,-3888.80354853,0.00021581,2]
[388787480,1759361446634,-647.08300379,0.00021588,2]
[388787482,1759361446643,-177.41530959,0.00021589,2]
[388787484,1759361446652,-1149.25014738,0.0002159,2]
[388787486,1759361446661,-497.1515781,0.00021592,2]
[388787488,1759361446672,-497.1515781,0.00021593,2]
[388787490,1759361446681,-3888.80354853,0.000216,2]
[388787518,1759361446914,-1149.25014738,0.00021602,2]
[388787521,1759361446954,-187.16,0.00021605,2]
[388787523,1759361446963,-18892.47795218,0.00021606,2]
[388787525,1759361446973,-158.97341172,0.00021612,2]
[388787527,1759361446986,-19693.48862777,0.00021613,2]
[388787529,1759361446995,-30714.65627628,0.00021614,2]
[388787531,1759361447004,-158.97341172,0.00021614,2]
[388787533,1759361447014,-80462.97548988,0.00021616,2]
[388787535,1759361447024,-314198.35233213,0.00021616,2]
[388787537,1759361447034,-1149.25014738,0.00021617,2]
[388787539,1759361447044,-19693.48862777,0.0002162,2]
[388787542,1759361447054,-9468.98389749,0.00021621,2]
[388787543,1759361447063,-177.41530959,0.00021622,2]
[388787545,1759361447072,-314198.35233213,0.00021626,2]
[388787547,1759361447082,-19693.48862777,0.00021631,2]